Cogmind - Beta 10.2 @@@ ROGUE MODE // 2021.08.17 @ 16:57:26 Player: BoomBlip Result: Destroyed by P-70 Sage with High-powered Shock Rifle Performance ------------- Evolutions (6) 3000 Regions Visited (13) 2600 Robots Destroyed (156) 780 Value Destroyed (7292) 7292 Prototype IDs (10) 200 Alien Tech Used (0) 0 Bonus (778) 778 TOTAL SCORE: 14650 Bonus ------- High Alert Combat Kills 284 Follower Combat Kills 534 Friendly Fire -40 Cogmind --------- Core Integrity 0/1150 Matter 252/300 Energy 99/100 System Corruption 4% Temperature Cool (0) Movement Core (50) Location -4/Factory Parts ------- > --- POWER (1) -------- (None) > --- PROPULSION (4) --- (None) > --- UTILITY (10) ----- (None) > --- WEAPON (4) ------- (None) > --- INVENTORY (4) ---- Medium Treads Advanced Heat Sink Medium Battery (200) Small Matter Pod (50) Peak State ------------ > --- POWER ------------ Quantum Reactor > --- PROPULSION ------- Centrium Heavy Treads Centrium Heavy Treads > --- UTILITY ---------- Advanced Heat Sink Improved Coolant Injector Medium Storage Unit Targeting Computer Advanced Targeting Computer Advanced Targeting Computer Improved Target Analyzer Centrium Medium Armor Plating Centrium Medium Armor Plating > --- WEAPON ----------- Advanced Variable Charge Gun Improved KE Penetrator Mass Driver > --- INVENTORY -------- Neutrino Core Micro Fission Core Light Antimatter Reactor Quantum Reactor Medium Battery Improved Arc Projector Phase Cannon Improved KE Penetrator [Rating: 113] Favorites ----------- Power F-cell Engine Engine F-cell Engine Power Core Nuclear Core Reactor Quantum Reactor Propulsion Aluminum Leg Treads Improved Medium Treads Leg Aluminum Leg Wheel Armored Wheel Hover Unit Linear Gravjet Flight Unit VTOL Module Utility Advanced Targeting Computer Device Improved Coolant Injector Storage Large Storage Unit Processor Advanced Targeting Computer Hackware System Shield Protection Layered Medium Armor Plating Weapon Gauss Rifle Energy Gun Improved Arc Projector Energy Cannon Proton Cannon Ballistic Gun Gauss Rifle Ballistic Cannon Mass Driver Launcher Advanced EMP Blaster Build | -11 -10 -9 -9 -8 -7 -7 -6 -5 -5 -5 -5 -5 -4 ------- Run | Scr Mat Mat Min Mat Fac Sto Fac Fac Ext Cet Arc Hub Fac Slots Evolved 12 | . . 2 . 2 2 . 2 2 . . . . 2 Power . | . . . . . . . . . . . . . . Propulsion 2 | . . 1 . . 1 . . . . . . . . Utility 8 | . . 1 . 2 1 . 1 2 . . . . 1 Weapon 2 | . . . . . . . 1 . . . . . 1 Parts Attached 273 | 7 13 3 1 19 20 34 8 33 16 18 13 58 30 Power 23 | 1 3 . . 2 1 2 . 3 . 2 . 4 5 Engine 9 | 1 3 . . 2 1 1 . 1 . . . . . Core 5 | . . . . . . 1 . 2 . . . 2 . Reactor 9 | . . . . . . . . . . 2 . 2 5 Propulsion 87 | 3 3 1 1 5 9 15 3 8 8 2 6 16 7 Treads 45 | 1 . . . . 1 13 1 2 6 2 6 11 2 Leg 30 | 2 3 1 1 5 8 2 2 2 . . . 4 . Wheel 4 | . . . . . . . . 3 . . . 1 . Hover 5 | . . . . . . . . 1 2 . . . 2 Flight 3 | . . . . . . . . . . . . . 3 Utility 83 | 1 4 1 . 6 7 8 2 11 5 4 3 24 7 Device 29 | . 3 1 . 1 2 4 1 4 . 2 1 8 2 Storage 10 | 1 1 . . 1 1 . . 3 2 . . 1 . Processor 9 | . . . . 1 . . 1 3 2 . . . 2 Hackware 1 | . . . . 1 . . . . . . . . . Protection 34 | . . . . 2 4 4 . 1 1 2 2 15 3 Artifact . | . . . . . . . . . . . . . . Weapon 80 | 2 3 1 . 6 3 9 3 11 3 10 4 14 11 Energy Gun 30 | 1 2 . . 2 1 5 . 1 1 1 1 9 6 Energy Cannon 10 | . . . . . 2 2 2 1 1 1 . . 1 Ballistic Gun 33 | 1 1 1 . 4 . 2 . 7 . 6 3 4 4 Ballistic Cannon 5 | . . . . . . . . 2 1 1 . 1 . Launcher 2 | . . . . . . . 1 . . 1 . . . Special Weapon . | . . . . . . . . . . . . . . Impact Weapon . | . . . . . . . . . . . . . . Slashing Weapon . | . . . . . . . . . . . . . . Piercing Weapon . | . . . . . . . . . . . . . . Special Melee Weapon . | . . . . . . . . . . . . . . Unidentified Prototypes 10 | . . . . . . 1 1 1 . 4 . 1 2 Parts Lost 78 | . . . . 3 7 14 5 7 . 7 1 18 16 Power 1 | . . . . 1 . . . . . . . . . Propulsion 23 | . . . . . 3 5 2 2 . 1 . 5 5 Utility 27 | . . . . 1 3 6 . 2 . 2 1 8 4 Weapon 27 | . . . . 1 1 3 3 3 . 4 . 5 7 Highest Loss Streak 15 | . . . . 2 4 4 5 7 . 4 1 7 15 Average Slot Usage (%) 89 | . 96 100 100 92 96 95 79 63 100 87 83 90 75 Engine 4 | . 14 11 11 8 7 4 . 3 5 . . . . Reactor 1 | . . . . . . . . . . 4 5 4 4 Treads 10 | . . . . . . 24 12 1 15 12 16 13 11 Leg 9 | . 28 33 33 27 29 3 8 5 2 . . 5 . Device 11 | . 10 22 22 13 6 9 10 9 11 11 11 14 8 Storage 10 | . 14 11 11 9 13 15 10 5 11 6 5 8 8 Processor 11 | . . . . 6 7 7 10 7 22 21 12 11 11 Hackware 1 | . . . . 6 7 2 . . . . . . . Protection 6 | . . . . 2 7 7 4 . 5 8 11 11 12 Energy Gun 5 | . 14 11 11 5 2 5 . 1 4 1 . 7 9 Energy Cannon 2 | . . . . . 4 2 15 1 4 1 . . 2 Ballistic Gun 6 | . 14 11 11 12 7 5 . 7 . 7 16 5 1 Ballistic Cannon 1 | . . . . . . . . 2 5 4 . 1 2 Naked Turns 122 | . . . . . . . 36 8 . . . . 78 Heaviest Build 91 | 13 27 29 29 34 59 59 63 45 56 67 78 78 91 Greatest Support 160 | 20 20 30 30 30 55 80 60 40 113 160 160 130 128 Greatest Overweight (x) 14 | 1 1 . . 1 2 3 2 5 1 . . 14 7 Average Overweight (x) . | . . . . . . . . . . . . . . Largest Inventory Capacity 16 | 6 12 10 10 10 16 16 16 6 8 8 8 12 12 Average Capacity 10 | 4 9 10 10 10 15 16 13 4 7 8 8 10 10 Most Carried 16 | 1 10 10 10 10 16 16 16 6 8 8 8 12 12 Average Carried 9 | . 7 9 10 9 14 15 12 4 7 7 7 9 10 Final Capacity 16 | 6 10 10 10 10 16 16 4 6 8 8 8 12 4 Final Carried 16 | 1 10 10 10 10 16 16 4 6 8 7 7 12 4 Class Distribution -------------------- 40% | Scavenger-Gunner 37% | Scavenger-Mutant 10% | Scavenger-Tank 9% | Mutant Dominant Class ---------------- Scavenger-Mutant | -10/Materials Scavenger-Mutant | -9/Materials Scavenger-Mutant | -9/Mines Scavenger-Mutant | -8/Materials Scavenger-Mutant | -7/Factory Scavenger-Mutant | -7/Storage Scavenger-Tank | -6/Factory Scavenger-Gunner | -5/Factory Scavenger-Gunner | -5/Extension Scavenger-Gunner | -5/Cetus Scavenger-Gunner | -5/Archives Scavenger-Gunner | -5/Hub_04(d) Scavenger-Tank | -4/Factory Resources | -11 -10 -9 -9 -8 -7 -7 -6 -5 -5 -5 -5 -5 -4 ----------- Run | Scr Mat Mat Min Mat Fac Sto Fac Fac Ext Cet Arc Hub Fac Matter Collected 5160 | 267 293 45 45 280 307 733 . 388 552 553 286 1047 364 Remotely . | . . . . . . . . . . . . . . Salvage Created 8370 | 61 398 45 72 499 421 1298 . 503 970 1273 386 1604 840 Parts 367 | 1 26 3 4 33 21 50 . 28 32 52 15 72 30 Haulers Intercepted 8 | . 1 1 . . 1 2 . . . . . 2 1 Recyclers Shooed 9 | 1 . . . . . 2 . . . . . 2 4 Parts Field Recycled . | . . . . . . . . . . . . . . Retrieved Matter . | . . . . . . . . . . . . . . Parts Self-Destructed . | . . . . . . . . . . . . . . Prevented . | . . . . . . . . . . . . . . Kills | -11 -10 -9 -9 -8 -7 -7 -6 -5 -5 -5 -5 -5 -4 ------- Run | Scr Mat Mat Min Mat Fac Sto Fac Fac Ext Cet Arc Hub Fac Combat Hostiles Destroyed 126 | . 8 . 2 12 6 21 . 6 11 24 4 18 14 Melee 1 | . . . . . . . . . . . . . 1 Guns 86 | . 8 . 2 12 3 18 . 1 . 10 4 17 11 Cannons 27 | . . . . . 2 2 . 3 8 9 . 1 2 AOE 1 | . . . . . . . . . 1 . . . . Classes Destroyed 13 | 1 3 . 1 2 2 2 . . 2 . . . . Worker 6 | . 1 . . . . . . . . . . 4 1 Builder 5 | . . . . . 1 . . 1 . . . 2 1 Hauler 8 | . 1 1 . . 1 2 . . . . . 2 1 Recycler 7 | 1 . . . . . 1 . 1 2 . . 1 1 Watcher 4 | . . . . . . . . . 1 1 . 1 1 Swarmer 15 | . . . . 3 . . . . . 4 . . 8 Grunt 55 | . 8 . 1 4 2 8 . . 6 15 . 11 . Brawler 3 | . . . . . . 3 . . . . . . . Duelist 5 | . . . 1 . . 3 . . 1 . . . . Sentry 23 | . . . . 5 3 5 . 1 2 . 4 2 1 Hunter 13 | . . . . . 1 1 . 3 1 1 . 2 4 Programmer 6 | . . . . . . 1 . 2 . . . 2 1 Behemoth 2 | . . . . . . . . . 1 . . 1 . Cetus Guard 4 | . . . . . . . . . . 4 . . . Best Kill Streak 12 | 1 6 1 2 4 2 3 . 3 2 12 3 7 8 Combat Bots Only 12 | . 5 . 2 4 2 3 . 3 2 12 3 3 7 Max Kills in Single Turn 3 | 1 1 1 1 1 2 1 . 1 1 2 1 2 3 Gunslinging . | . . . . . . . . . . . . . . Exploded 1 | . . . . . . . . . 1 . . . . Melee 1 | . . . . . . . . . . . . . 1 Uniques/NPCs Destroyed . | . . . . . . . . . . . . . . Combat | -11 -10 -9 -9 -8 -7 -7 -6 -5 -5 -5 -5 -5 -4 -------- Run | Scr Mat Mat Min Mat Fac Sto Fac Fac Ext Cet Arc Hub Fac Damage Taken 18706 | . 450 . 106 540 1238 2796 811 1096 546 3275 577 3852 3419 Core 2929 | . 95 . 70 84 121 309 290 142 30 287 50 294 1157 Absorbed by Shields 25 | . . . . . . . . . 25 . . . . Core Remaining (%) 64 | 100 62 . 82 84 . 38 65 . . . . 19 . Volleys Fired 448 | 5 29 2 4 30 30 92 10 26 35 39 15 85 46 Largest 4 | 2 2 2 2 2 2 2 3 3 3 3 3 3 4 Hottest 334 | 70 85 85 88 108 120 134 197 173 197 197 98 209 334 Shots Fired 1046 | 10 58 4 8 58 56 183 14 60 104 111 45 200 135 Gun 778 | 10 58 4 8 58 41 170 . 38 35 43 45 177 91 Cannon 262 | . . . . . 15 13 14 22 69 62 . 23 44 Launcher 6 | . . . . . . . . . . 6 . . . Special . | . . . . . . . . . . . . . . Kinetic 542 | 5 29 2 4 36 34 86 . 44 43 76 45 98 40 Thermal 343 | 5 29 2 4 22 7 83 7 . . 13 . 76 95 Explosive . | . . . . . . . . . . . . . . Electromagnetic 161 | . . . . . 15 14 7 16 61 22 . 26 . Robot Hit Streak 32 | 4 13 3 9 12 10 23 6 7 27 26 16 32 32 Robot Miss Streak 7 | 1 2 1 . 7 2 4 1 5 2 1 2 3 2 Penetration Max 1 | . . . . . . 1 . 1 1 1 . 1 . Secondary Targets 12 | . 3 . . 2 . 3 . . . . . 2 2 Max Gunslinging Chain 1 | . 1 . . 1 . 1 . . . . . 1 1 Shots Hit Robots 814 | 7 39 3 6 39 42 162 10 38 81 90 33 166 98 Core Hits 339 | 2 17 2 4 17 18 76 4 11 28 45 17 64 34 Critical Hits 31 | . . . . 1 . . . 7 6 10 2 1 4 Critical Kills 13 | . . . . 1 . . . 3 2 5 1 . 1 Critical Parts Destroyed 15 | . . . . . . . . 4 3 5 . . 3 Melee Attacks . | . . . . . . . . . . . . . . Impact . | . . . . . . . . . . . . . . Slashing . | . . . . . . . . . . . . . . Piercing . | . . . . . . . . . . . . . . Sneak Attacks . | . . . . . . . . . . . . . . Combat Hostiles . | . . . . . . . . . . . . . . Follow-up Attacks . | . . . . . . . . . . . . . . Damage Inflicted 19329 | 117 516 23 96 686 1055 2976 300 878 2102 3180 736 3854 2810 Guns 11644 | 117 516 23 96 686 455 2655 . 387 362 1003 736 3140 1468 Cannons 6112 | . . . . . 317 321 300 491 1616 1546 . 521 1000 Explosions 1513 | . . . . . 283 . . . 124 631 . 160 315 Melee . | . . . . . . . . . . . . . . Ramming 60 | . . . . . . . . . . . . 33 27 Kinetic 9096 | 54 211 9 29 397 407 1509 . 585 954 1816 736 1887 502 Thermal 6841 | 63 305 14 67 289 201 1340 203 . 124 300 . 1654 2281 Explosive 217 | . . . . . 217 . . . . . . . . Electromagnetic 3115 | . . . . . 230 127 97 293 1024 1064 . 280 . Impact . | . . . . . . . . . . . . . . Slashing . | . . . . . . . . . . . . . . Piercing . | . . . . . . . . . . . . . . Highest Corruption 11 | . . . . . 4 11 . 2 3 3 3 6 4 Average Corruption 3 | . . . . . 3 6 . 1 2 3 3 4 1 Corruption Purged . | . . . . . . . . . . . . . . Effects 123 | . . . . . 12 40 . 3 22 13 5 26 2 Message Errors 22 | . . . . . 4 4 . . 5 2 2 4 1 Matter Fused 22 | . . . . . 4 6 . . 1 2 1 8 . Heat Flow Errors 21 | . . . . . 2 6 . 1 7 2 . 3 . Energy Discharges 10 | . . . . . . 4 . . 3 . 1 2 . Data Loss (minor) 12 | . . . . . 1 5 . 2 3 1 . . . Data Loss (major) 2 | . . . . . . 1 . . . . . 1 . Misfires 2 | . . . . . . 1 . . . . . 1 . Misdirections 1 | . . . . . . 1 . . . . . . . Targeting Errors 29 | . . . . . 1 12 . . 2 6 1 6 1 Weapon Failures 2 | . . . . . . . . . 1 . . 1 . Overload Shots . | . . . . . . . . . . . . . . Overflow Damage 392 | . . . . . 79 31 . 39 23 32 . 49 139 Projectiles 225 | . . . . . . 31 . 39 23 21 . 49 62 Explosions 167 | . . . . . 79 . . . . 11 . . 77 Melee . | . . . . . . . . . . . . . . Knockbacks 24 | . . . . . . . . 3 . 11 . 9 1 Impact . | . . . . . . . . . . . . . . Kinetic 22 | . . . . . . . . 3 . 10 . 8 1 Secondary 2 | . . . . . . . . . . 1 . 1 . Self-Inflicted Damage 459 | . . . . . 428 . . . . . . 18 13 Shots 6 | . . . . . 5 . . . . . . 1 . Rammed 6 | . 1 . . . . . . . . . . . 5 Targets Rammed 8 | . 1 . . . . . . . . . . 2 5 Kicked 2 | . . . . . . . . . . . . 2 . Crushed . | . . . . . . . . . . . . . . Highest Temperature 394 | 45 135 . . 6 375 235 . 216 197 280 . 195 394 Average Temperature 88 | 23 51 . . 4 138 81 . 71 91 110 . 66 102 Received Heat Transfer 3952 | . 252 . . 189 243 684 156 18 115 1038 108 1104 45 Effects 1 | . . . . . . . . . . . . . 1 Energy Bleed 1 | . . . . . . . . . . . . . 1 Siege Activations . | . . . . . . . . . . . . . . Robots Corrupted 10 | . . . . . 1 1 . 2 1 5 . . . Combat Hostiles 10 | . . . . . 1 1 . 2 1 5 . . . Parts Fried 22 | . . . . . 2 1 . 8 6 5 . . . Impact Corruptions 1 | . . . . . . . . . 1 . . . . Robots Melted . | . . . . . . . . . . . . . . Combat Hostiles . | . . . . . . . . . . . . . . Parts Melted 19 | . . . 1 2 . 7 . . . 1 . 5 3 Heat Transferred 11041 | 185 740 37 148 646 235 2733 259 . 100 407 . 2809 2742 Parts Sabotaged . | . . . . . . . . . . . . . . Parts Stolen . | . . . . . . . . . . . . . . Parts Stripped . | . . . . . . . . . . . . . . Power Chain Reactions 3 | . . . . . 1 . . . 1 . . 1 . Missiles Intercepted . | . . . . . . . . . . . . . . Alert | -11 -10 -9 -9 -8 -7 -7 -6 -5 -5 -5 -5 -5 -4 ------- Run | Scr Mat Mat Min Mat Fac Sto Fac Fac Ext Cet Arc Hub Fac Peak Influence 807 | 5 272 7 67 326 269 324 135 307 360 807 421 464 403 Initial 266 | . 3 . 2 26 100 33 120 63 81 190 266 147 182 Average 193 | 2 112 4 41 158 168 181 118 124 99 471 399 278 265 Maximum Alert Level 3 | . 1 . . 1 1 1 . 1 1 3 2 2 2 Low Security (%) 59 | 100 68 100 100 68 67 51 100 89 91 7 . 36 18 Level 1 31 | . 31 . . 31 32 48 . 10 8 25 23 49 78 Level 2 9 | . . . . . . . . . . 61 76 14 2 Level 3 . | . . . . . . . . . . 5 . . . Level 4 . | . . . . . . . . . . . . . . Level 5 . | . . . . . . . . . . . . . . High Security . | . . . . . . . . . . . . . . Max Security . | . . . . . . . . . . . . . . Squads Dispatched 37 | . 2 . . 2 1 9 . 4 4 2 . 7 6 Investigation 11 | . 2 . . 1 . 1 . . 3 2 . 1 1 Extermination 5 | . . . . . 1 1 . 1 . . . 1 1 Reinforcement 10 | . . . . 1 . 1 . 2 1 . . 4 1 Assault 1 | . . . . . . . . 1 . . . . . Garrison 10 | . . . . . . 6 . . . . . 1 3 Intercept . | . . . . . . . . . . . . . . Construction Impeded 3 | . . . . . . . . . . . . 2 1 Haulers Reinforced . | . . . . . . . . . . . . . . Stealth | -11 -10 -9 -9 -8 -7 -7 -6 -5 -5 -5 -5 -5 -4 --------- Run | Scr Mat Mat Min Mat Fac Sto Fac Fac Ext Cet Arc Hub Fac Distress Signals 14 | . 1 . . 3 1 4 1 1 . 2 . 1 . Communications Jammed . | . . . . . . . . . . . . . . Distress Signals . | . . . . . . . . . . . . . . Times Spotted 236 | . 15 . 2 20 16 33 4 10 30 34 4 39 29 Peak Tracking Total 11 | . 6 . 2 5 3 4 3 4 4 11 3 5 11 Tactical Retreats 15 | . . . . 2 2 . 1 . . 6 . 3 1 Traps | -11 -10 -9 -9 -8 -7 -7 -6 -5 -5 -5 -5 -5 -4 ------- Run | Scr Mat Mat Min Mat Fac Sto Fac Fac Ext Cet Arc Hub Fac Traps Triggered 20 | . 2 . . . 3 1 1 1 3 . . 5 4 Indirectly . | . . . . . . . . . . . . . . Trap Hack Attempts . | . . . . . . . . . . . . . . Triggered . | . . . . . . . . . . . . . . Disarmed . | . . . . . . . . . . . . . . Reprogrammed . | . . . . . . . . . . . . . . Reused . | . . . . . . . . . . . . . . Traps Extracted . | . . . . . . . . . . . . . . Installed . | . . . . . . . . . . . . . . Triggered . | . . . . . . . . . . . . . . Machines | -11 -10 -9 -9 -8 -7 -7 -6 -5 -5 -5 -5 -5 -4 ---------- Run | Scr Mat Mat Min Mat Fac Sto Fac Fac Ext Cet Arc Hub Fac Machines Disabled 32 | . 1 . . 1 4 1 . 2 5 6 2 4 6 Max in Single Turn 6 | . 1 . . 1 2 1 . 1 1 1 1 2 6 Garrison Access 1 | . . . . . . . . 1 . . . . . Machines Sabotaged . | . . . . . . . . . . . . . . Garrisons Compromised . | . . . . . . . . . . . . . . Overloaded Fab Kills . | . . . . . . . . . . . . . . Fab Network Shutdowns . | . . . . . . . . . . . . . . Hacking | -11 -10 -9 -9 -8 -7 -7 -6 -5 -5 -5 -5 -5 -4 --------- Run | Scr Mat Mat Min Mat Fac Sto Fac Fac Ext Cet Arc Hub Fac Machines Accessed 42 | . 6 . . 2 2 6 1 2 17 3 1 2 . Terminals 40 | . 5 . . 2 2 6 1 2 17 3 . 2 . Fabricators . | . . . . . . . . . . . . . . Repair Stations . | . . . . . . . . . . . . . . Recycling Units 1 | . 1 . . . . . . . . . . . . Scanalyzers . | . . . . . . . . . . . . . . Garrison Access . | . . . . . . . . . . . . . . Total Hacks 93 | . 13 . . 3 5 12 1 2 33 15 3 6 . Successful 34 | . 7 . . . . 2 . . 15 6 3 1 . Failed 59 | . 6 . . 3 5 10 1 2 18 9 . 5 . Catastrophic 18 | . . . . 2 2 2 1 2 3 3 . 3 . Database Lockouts . | . . . . . . . . . . . . . . Manual 49 | . 13 1 . 4 5 9 1 1 10 . . 5 . Terminals 88 | . 11 . . 3 5 12 1 2 33 15 . 6 . Fabricators . | . . . . . . . . . . . . . . Repair Stations . | . . . . . . . . . . . . . . Recycling Units 2 | . 2 . . . . . . . . . . . . Scanalyzers . | . . . . . . . . . . . . . . Garrison Access . | . . . . . . . . . . . . . . Terminal Hacks 27 | . 2 . . . . 2 . . 13 6 3 1 . Record 9 | . . . . . . . . . . 6 3 . . Part Schematic 1 | . . . . . . 1 . . . . . . . Open Door 11 | . . . . . . 1 . . 10 . . . . Level Access Points 2 | . 1 . . . . . . . 1 . . . . Unreport Threat 3 | . 1 . . . . . . . 2 . . . . Recall Reinforcements 1 | . . . . . . . . . . . . 1 . Fabricator Hacks . | . . . . . . . . . . . . . . Repair Station Hacks . | . . . . . . . . . . . . . . Recycling Unit Hacks 1 | . 1 . . . . . . . . . . . . Retrieve Components 1 | . 1 . . . . . . . . . . . . Scanalyzer . | . . . . . . . . . . . . . . Garrison Access Hacks . | . . . . . . . . . . . . . . Unauthorized Hacks 6 | . 4 . . . . . . . 2 . . . . Terminals 6 | . 4 . . . . . . . 2 . . . . Botnet 6 | . 4 . . . . . . . 2 . . . . Fabricators . | . . . . . . . . . . . . . . Repair Stations . | . . . . . . . . . . . . . . Recycling Units . | . . . . . . . . . . . . . . Scanalyzers . | . . . . . . . . . . . . . . Garrison Access . | . . . . . . . . . . . . . . Data Cores Recovered . | . . . . . . . . . . . . . . Used . | . . . . . . . . . . . . . . Hacking Detections 31 | . 5 1 . 2 2 5 1 2 9 2 . 2 . Full Trace Events 8 | . . . . 1 . 1 . . 3 2 . 1 . Feedback Events . | . . . . . . . . . . . . . . Feedback Blocked . | . . . . . . . . . . . . . . Robot Schematics Acquired . | . . . . . . . . . . . . . . Robots Built . | . . . . . . . . . . . . . . Matter . | . . . . . . . . . . . . . . Time . | . . . . . . . . . . . . . . Total Robot Build Rating . | . . . . . . . . . . . . . . Part Schematics Acquired 1 | . . . . . . 1 . . . . . . . Parts Built . | . . . . . . . . . . . . . . Matter . | . . . . . . . . . . . . . . Time . | . . . . . . . . . . . . . . Total Part Build Rating . | . . . . . . . . . . . . . . Parts Repaired . | . . . . . . . . . . . . . . Time . | . . . . . . . . . . . . . . Parts Recycled . | . . . . . . . . . . . . . . Recycled Matter . | . . . . . . . . . . . . . . Retrieved Matter . | . . . . . . . . . . . . . . Retrieved Components 1 | . 1 . . . . . . . . . . . . Parts Scanalyzed . | . . . . . . . . . . . . . . Part Schematics Acquired . | . . . . . . . . . . . . . . Parts Damaged . | . . . . . . . . . . . . . . Bothacking | -11 -10 -9 -9 -8 -7 -7 -6 -5 -5 -5 -5 -5 -4 ------------ Run | Scr Mat Mat Min Mat Fac Sto Fac Fac Ext Cet Arc Hub Fac Used RIF Installer . | . . . . . . . . . . . . . . Robots Hacked . | . . . . . . . . . . . . . . Non-combat . | . . . . . . . . . . . . . . Combat . | . . . . . . . . . . . . . . Robot Hacks Applied . | . . . . . . . . . . . . . . Relay Couplers Released 1 | . . . . . . . . 1 . . . . . Machine Destruction 1 | . . . . . . . . 1 . . . . . Robots Rewired 5 | . . . . . . . . . 4 . . 1 . Allies Hacked . | . . . . . . . . . . . . . . Hacks Repelled . | . . . . . . . . . . . . . . Allies | -11 -10 -9 -9 -8 -7 -7 -6 -5 -5 -5 -5 -5 -4 -------- Run | Scr Mat Mat Min Mat Fac Sto Fac Fac Ext Cet Arc Hub Fac Total Allies 19 | . . . . . . . . . 18 . . 1 . Largest Group 10 | . . . . . . . . . 10 . . 1 . Highest-Rated Group 317 | . . . . . . . . . 317 . . 49 . Highest-Rated Ally 156 | . . . . . . . . . 156 . . 49 . Total Orders . | . . . . . . . . . . . . . . Ally Attacks 104 | . . . . . . . . . 97 . . 7 . Total Damage 2420 | . . . . . . . . . 2128 . . 292 . Kills 20 | . . . . . . . . . 16 . . 4 . Allies Corrupted 2 | . . . . . . . . . 2 . . . . Allies Melted . | . . . . . . . . . . . . . . Intel | -11 -10 -9 -9 -8 -7 -7 -6 -5 -5 -5 -5 -5 -4 ------- Run | Scr Mat Mat Min Mat Fac Sto Fac Fac Ext Cet Arc Hub Fac Robot Analysis Total . | . . . . . . . . . . . . . . Derelict Logs Recovered . | . . . . . . . . . . . . . . Drone Launches . | . . . . . . . . . . . . . . Drone Recoveries . | . . . . . . . . . . . . . . Exploration | -11 -10 -9 -9 -8 -7 -7 -6 -5 -5 -5 -5 -5 -4 ------------- Run | Scr Mat Mat Min Mat Fac Sto Fac Fac Ext Cet Arc Hub Fac Turns Passed 8509 | 86 476 99 202 497 836 1032 206 749 1539 520 342 1221 704 Spaces Moved 4580 | 52 235 75 150 271 509 385 142 511 852 225 169 553 451 Core 307 | 9 . . . . . . 70 82 . . . 1 145 Treads 2030 | 6 . . . . 2 355 28 . 555 225 169 435 255 Legs 1861 | 37 235 75 150 271 507 30 44 256 141 . . 115 . Wheels 175 | . . . . . . . . 173 . . . 2 . Hover 169 | . . . . . . . . . 156 . . . 13 Flight 38 | . . . . . . . . . . . . . 38 Fastest Speed 40 | 50 120 120 120 120 120 160 50 50 150 160 160 120 40 Average Speed 141 | 114 148 120 120 137 136 162 115 120 158 160 160 153 112 Slowest Speed 750 | 160 150 120 120 150 200 210 180 300 180 160 160 750 400 Overloaded Moves . | . . . . . . . . . . . . . . Propulsion Burnouts . | . . . . . . . . . . . . . . Robots Hopped . | . . . . . . . . . . . . . . Cave-ins Triggered . | . . . . . . . . . . . . . . Exploration Rate (%) 39 | 5 47 8 55 29 17 62 6 12 88 68 89 45 16 Regions Visited 13 Branch Regions 6 Pre-discovered Areas . | . . . . . . . . . . . . . . Known Exits Taken 2 | . 1 . . . . . . . . . . 1 . Unknown Exits Taken 11 | 1 . 1 1 1 1 1 1 1 1 1 1 . . Scrap Searched 1 | . . . 1 . . . . . . . . . . Spaces Dug 1 | . . . . . . . . . . . 1 . . Terrain Destroyed 125 | . . . . 1 51 2 . 6 19 4 10 23 9 Melee . | . . . . . . . . . . . . . . Projectile 61 | . . . . 1 . 2 . 6 9 4 10 20 9 AOE 64 | . . . . . 51 . . . 10 . . 3 . Terrain Rammed . | . . . . . . . . . . . . . . Walls Destroyed . | . . . . . . . . . . . . . . Machines Disabled . | . . . . . . . . . . . . . . Actions | -11 -10 -9 -9 -8 -7 -7 -6 -5 -5 -5 -5 -5 -4 --------- Run | Scr Mat Mat Min Mat Fac Sto Fac Fac Ext Cet Arc Hub Fac Total 5703 | 65 305 80 165 346 594 607 174 588 964 299 210 755 551 Wait 127 | . 11 . 10 . 18 73 . . 7 2 . 6 . Move 4567 | 51 234 74 149 270 508 384 141 510 851 224 168 552 451 Hop . | . . . . . . . . . . . . . . Pick Up 70 | 1 7 1 . 8 10 4 6 7 4 3 2 12 5 Fast Attach 152 | 7 2 . . 7 7 18 2 27 6 10 6 43 17 Attach 30 | . . 2 . . 5 3 5 2 . 4 1 5 3 Detach 1 | . . . . . . . 1 . . . . . . Swap 92 | . 11 1 1 12 8 13 1 5 10 4 6 10 10 Drop 156 | 1 10 . 1 19 8 20 8 11 15 13 12 24 14 Fire 448 | 5 29 2 4 30 30 92 10 26 35 39 15 85 46 Melee . | . . . . . . . . . . . . . . Ram 5 | . . . . . . . . . . . . . 5 Kick 3 | . 1 . . . . . . . . . . 2 . Crush . | . . . . . . . . . . . . . . Escape Stasis 20 | . . . . . . . . . 20 . . . . Rewire 32 | . . . . . . . . . 16 . . 16 . Trap . | . . . . . . . . . . . . . . Miscellaneous . | . . . . . . . . . . . . . . Route ------- -11/Scrapyard -10/Materials (discovered 3 exits: *Mat x3) -9/Materials -9/Mines -8/Materials -7/Factory -7/Storage -6/Factory -5/Factory -5/Extension (discovered 3 exits: *Fac x2 / *Cet) -5/Cetus -5/Archives (discovered 3 exits: *Fac / *Hub x2) -5/Hub_04(d) -4/Factory History --------- Turn | Location | Event 19 | -11/Scrapyard | Discovered new exit (range 16) 87 | -11/Scrapyard | Entered Materials 387 | -10/Materials | Identified exit to Materials 563 | -10/Materials | Entered another Materials area 563 | -9/Materials | Evolved 2 slots: Propulsion x1, Utility x1 569 | -9/Materials | Discovered new exit (range 11) 604 | -9/Materials | Build established: Scavenger-Mutant 662 | -9/Materials | Entered Mines 848 | -9/Mines | Discovered new exit (range 5) 864 | -9/Mines | Entered Materials 864 | -8/Materials | Evolved 2 slots: Utility x2 1238 | -8/Materials | Discovered new exit (range 18) 1361 | -8/Materials | Entered Factory 1361 | -7/Factory | Evolved 2 slots: Propulsion x1, Utility x1 1906 | -7/Factory | Lost 4 parts (1n2u1w) 2164 | -7/Factory | Discovered new exit (range 9) 2175 | -7/Factory | Lost 3 parts (2n1u) 2197 | -7/Factory | Entered Storage 2414 | -7/Storage | Garrison activated, responded to threat 2777 | -7/Storage | Garrison activated, responded to threat 2920 | -7/Storage | Core integrity fell below 50% 2954 | -7/Storage | Lost 4 parts (1n2u1w) 3201 | -7/Storage | Discovered new exit (range 18) 3219 | -7/Storage | System corruption reached 10% 3229 | -7/Storage | Entered Factory 3229 | -6/Factory | Evolved 2 slots: Utility x1, Weapon x1 3358 | -6/Factory | Spotted B-75 Beast 3399 | -6/Factory | Released all parts (10) 3420 | -6/Factory | Discovered new exit (range 10) 3430 | -6/Factory | Lost 5 parts (2n3w) 3435 | -6/Factory | Entered another Factory area 3435 | -5/Factory | Evolved 2 slots: Utility x2 3851 | -5/Factory | Lost 7 parts (2n2u3w) 4165 | -5/Factory | Discovered new exit (range 13) 4184 | -5/Factory | Entered Extension 4224 | -5/Extension | Build established: Scavenger-Gunner 4327 | -5/Extension | Identified exit to Factory 4408 | -5/Extension | Rescued A7 4459 | -5/Extension | Rescued a captive Derelict 4459 | -5/Extension | Rescued a captive Derelict 4568 | -5/Extension | Rescued a captive Derelict 4569 | -5/Extension | Rescued a captive Derelict 4712 | -5/Extension | Spotted B-75 Beast 4722 | -5/Extension | Spotted B-75 Beast 4749 | -5/Extension | Allies destroyed B-75 Beast 4751 | -5/Extension | Destroyed B-75 Beast 5180 | -5/Extension | Rescued a captive Derelict 5286 | -5/Extension | Rescued a captive Derelict 5305 | -5/Extension | Rescued a captive Derelict 5344 | -5/Extension | Rescued a captive Derelict 5503 | -5/Extension | Rescued a captive Derelict 5513 | -5/Extension | Rescued a captive Derelict 5541 | -5/Extension | Rescued a captive Derelict 5548 | -5/Extension | Rescued a captive Derelict 5566 | -5/Extension | Rescued a captive Derelict 5707 | -5/Extension | Discovered new exit (range 6) 5723 | -5/Extension | Entered Cetus 5744 | -5/Cetus | Spotted Cetus Guard 5744 | -5/Cetus | Spotted Cetus Guard 5749 | -5/Cetus | Spotted Cetus Guard 5761 | -5/Cetus | Destroyed Cetus Guard 5761 | -5/Cetus | Destroyed Cetus Guard 5761 | -5/Cetus | Spotted Cetus Guard 5765 | -5/Cetus | Destroyed Cetus Guard 5768 | -5/Cetus | Destroyed Cetus Guard 5830 | -5/Cetus | Destroyed 8 combat bots 5830 | -5/Cetus | Lost 4 parts (1n1u2w) 6111 | -5/Cetus | Lost 3 parts (1u2w) 6113 | -5/Cetus | Cetus Manufacturing Module disabled 6134 | -5/Cetus | Destroyed 12 combat bots 6180 | -5/Cetus | Discovered new exit (range 15) 6210 | -5/Cetus | Spotted Cetus Guard 6243 | -5/Cetus | Entered Archives 6302 | -5/Archives | Core integrity fell below 50% 6387 | -5/Archives | Unable to access archive contents 6391 | -5/Archives | Discovered new exit (range 16) 6406 | -5/Archives | Unable to access archive contents 6412 | -5/Archives | Discovered new exit (range 13) 6433 | -5/Archives | Discovered exit to Factory (range 16) 6585 | -5/Archives | Entered Hub_04(d) 7086 | -5/Hub_04(d) | Lost 4 parts (2n2u) 7235 | -5/Hub_04(d) | Garrison activated, responded to threat 7267 | -5/Hub_04(d) | Spotted B-75 Beast 7334 | -5/Hub_04(d) | Destroyed B-75 Beast 7357 | -5/Hub_04(d) | Lost 7 parts (2n2u3w) 7531 | -5/Hub_04(d) | Core integrity fell below 20% 7560 | -5/Hub_04(d) | Lost 4 parts (3u1w) 7774 | -5/Hub_04(d) | Discovered exit to Factory (range 15) 7806 | -5/Hub_04(d) | Entered Factory 7806 | -4/Factory | Evolved 2 slots: Utility x1, Weapon x1 8134 | -4/Factory | Build established: Scavenger-Tank 8177 | -4/Factory | Garrison activated, responded to threat 8283 | -4/Factory | Destroyed 7 combat bots 8322 | -4/Factory | Spotted B-86 Titan 8402 | -4/Factory | Released all parts (9) 8453 | -4/Factory | Lost 15 parts (5n4u6w) 8461 | -4/Factory | Core integrity fell below 50% 8485 | -4/Factory | Core integrity fell below 20% 8510 | -4/Factory | Destroyed by P-70 Sage with High-powered Shock Rifle Last Messages --------------- 08457_ Penetrated by Slug. 08458_ Acquired Gyrokinetic Inverter. 08462_ Slug penetrates Wall. 08463_ Penetrated by Slug. 08464_ U-05 Engineer lays Concrete. 08466_ P-70 Sage resets H-77 Assassin, system corruption cleaned. 08468_ K-01 Serf cleans the Neutrino Reactor. 08470_ Dropped Gyrokinetic Inverter. 08472_ K-01 Serf cleans the Neutrino Reactor. 08473_ Slug penetrates Wall. 08477_ U-05 Engineer lays Concrete. 08479_ Door malfunctions. 08483_ S-27 Virus destroyed. 08484_ Triggered Alarm Trap. 08484_ An alarm sounds. 08484_ ALERT: Alarm triggered, dispatching investigation squad. 08485_ Slammed into A-15 Conveyor. 08498_ P-70 Sage resets S-27 Virus, system corruption cleaned. 08506_ Triggered Segregator Trap. 08506_ Arcs of energy rise from the floor. Map ----- +----------------------------------------------------+ | ?????????????????????????????????????????????????? | | ?????????????????????????????????????????????????? | | ?????????????????????????????????????????????????? | | ?????????????????????????????????????????????????? | | ?????????????????????????????????????????????????? | | ?????????????????????????????????????????????????? | | ?????????????????????????????????????????????????? | | ?????????????????????????????????????????????????? | | ?????????????????????????????????????????????????? | | ?????????????????????????????????????????????????? | | ??????????????????????? ???????????????????????? | | ??????????????????????? ???????????????????????? | | ??????????????????????? ???????????????????????? | | ??????????????????????? ???????????????????????? | | ??????????????????????? ???????????????????????? | | ??????????????????????? ???????????????????????? | | ???????????????????????? ???????????????????????? | | ???????????????????????? w#??????????????????????? | | ???????????????????????? #??????????????????????? | | ???????????????????????? #??????????????????????? | | ???????????????????????? u#??????????????????????? | | ???????????????????????? #??????????????????????? | | ????????????????????????# #??????????????????????? | | ????????????????????????# #??????????????????????? | | ??????????????????????### ###????????????????????? | | ??????????????????????# @ #????????????????????? | | ??????????????????????# #????????????????????? | | ??????????????????????# ! #????????????????????? | | ??????????????????????# #????????????????????? | | ??????????????????????# #????????????????????? | | ??????????????????????## ##????????????????????? | | ???????????????????????# #?????????????????????? | | ???????????????????????# #?????????????????????? | | ???????????????????????# ^ #?????????????????????? | | ???????????????????????# k #?????????????????????? | | ???????????????????????# #?????????????????????? | | ???????????????????????# #?????????????????????? | | ???????????????????????# #?????????????????????? | | ???????????????????????#s p#?????????????????????? | | ???????????????????????#s #?????????????????????? | | ########################k #?????????????????????? | | ##????????????????????? | | ?????????????? | | ???######## ##########?????????????? | | ??????????# ===#??????????????????????? | | ??????????# """" ===#??????????????????????? | | ??????????#/! """" == #??????????????????????? | | ??????????#! """" #??????????????????????? | | ??????????# #??????????????????????? | | ??????????# #??????????????????????? | +----------------------------------------------------+ Best States ------------- Heat Dissipation 105 Coolant Potential 80 Energy Generation 27 Energy Capacity 1000 Matter Stores 300 Matter Capacity 450 Sight Range 22 Robot Scan Range 20 Terrain Scan Density 85 Armor Coverage 1200 Resistance: TH 15 Resistance: EM 15 Core Shielding 20 Propulsion Shielding 33 Reclamation Efficiency 20 Phase Shifting 5 Evasion (%) 62 Targeting Accuracy 21 Target Analysis 6 Recoil Reduction 4 Defensive Hacking 10 Item Schematics ----------------- Remote Datajack | -7/Storage | Hacked Robot Schematics ------------------ None Fabricated ------------ Nothing Alien Tech Used ----------------- None Achievements -------------- Prison Break Challenges ------------ None Game ------ Seed StealthInsulatedPurifier Manual? 0 Play Time 01:24:32 Cumulative 67.4 hours Start 2021.08.17 @ 14:22:51 End 2021.08.17 @ 16:57:26 Sessions 1 Manual Loads 0 Difficulty Rogue Special Mode None Game No. 101 Rogue 91 Adventurer 8 Explorer 2 Win Type - Total 0 Types 0/0/0/0/0/0/0/0/0 Lore% 18 Gallery% 48 Achievement% 30 Wizard Run 0 Options --------- ASCII 0 Keyboard 0 Movement Arrows Keybinds 0 Fullscreen 1 Font 36/CogNarrow Map View 76x50 Tactical HUD 1 Map Filters NONE Filters NONE Steam 1 RUN: c2b3cf23-bf54-4c8c-b6a0-fe6e8bee2dbf